[Event "Nové Hrady - Blesk"]
[Site "Nové Hrady, Czech Republic"]
[Date "2023.08.17"]
[Round "3.10"]
[White "Prinz, Hubert"]
[Black "Hejda, Ondřej"]
[Result "1-0"]
[TimeControl "2x3+2s"]
[WhiteFideId "1639447"]
[BlackFideId "23713623"]
[WhiteElo "1884"]
[BlackElo "1321"]

1. d4 {[%clk 00:03:03]} {[%emt 00:01:12]} c6 {[%clk 00:03:02]} {[%emt
00:00:02]} 2. Nf3 {[%clk 00:03:05]} d5 {[%clk 00:03:01]} {[%emt 00:00:04]} 3.
e3 {[%clk 00:03:06]} Nf6 {[%clk 00:03:02]} {[%emt 00:00:02]} 4. Bd3 {[%clk
00:03:07]} Bg4 {[%clk 00:02:58]} {[%emt 00:00:06]} 5. c4 {[%clk 00:03:08]} e6
{[%clk 00:02:59]} {[%emt 00:00:03]} 6. Qb3 {[%clk 00:03:08]} {[%emt 00:00:01]}
Qc7 {[%clk 00:02:59]} {[%emt 00:00:02]} 7. Ne5 {[%clk 00:03:06]} {[%emt
00:00:04]} Nbd7 {[%clk 00:02:52]} {[%emt 00:00:09]} 8. Nxg4 {[%clk 00:03:06]}
{[%emt 00:00:02]} Nxg4 {[%clk 00:02:53]} 9. h3 {[%clk 00:03:06]} {[%emt
00:00:03]} Ngf6 {[%clk 00:02:54]} 10. Nc3 {[%clk 00:02:59]} {[%emt 00:00:11]}
c5 {[%clk 00:02:39]} {[%emt 00:00:17]} 11. cxd5 {[%clk 00:02:56]} {[%emt
00:00:04]} cxd4 {[%clk 00:02:38]} {[%emt 00:00:03]} 12. dxe6 {[%clk 00:02:08]}
{[%emt 00:00:51]} Nc5 {[%clk 00:02:34]} {[%emt 00:00:06]} 13. Qb5+ {[%clk
00:01:24]} {[%emt 00:00:46]} Kd8 {[%clk 00:02:01]} {[%emt 00:00:34]} 14. exd4
{[%clk 00:01:23]} {[%emt 00:00:04]} Nxe6 {[%clk 00:01:54]} {[%emt 00:00:07]} 15.
Nd5 {[%clk 00:01:09]} {[%emt 00:00:18]} Qc8 {[%clk 00:01:05]} {[%emt 00:00:50]}
16. Nxf6 {[%clk 00:01:06]} {[%emt 00:00:05]} gxf6 {[%clk 00:01:06]} 17. Qd5+
{[%clk 00:00:58]} {[%emt 00:00:11]} Qd7 {[%clk 00:00:56]} {[%emt 00:00:12]} 18.
Qxd7+ {[%clk 00:00:58]} {[%emt 00:00:02]} Kxd7 {[%clk 00:00:57]} 19. Be3 {[%clk
00:00:57]} {[%emt 00:00:04]} Bd6 {[%clk 00:00:54]} {[%emt 00:00:06]} 20. Bb5+
{[%clk 00:00:51]} {[%emt 00:00:07]} Ke7 {[%clk 00:00:50]} {[%emt 00:00:06]} 21.
O-O {[%clk 00:00:51]} {[%emt 00:00:02]} Rac8 {[%clk 00:00:46]} {[%emt
00:00:06]} 22. b3 {[%clk 00:00:47]} {[%emt 00:00:06]} Rc2 {[%clk 00:00:41]}
{[%emt 00:00:08]} 23. Bc4 {[%clk 00:00:45]} {[%emt 00:00:04]} a6 {[%emt
00:00:06]} 24. a4 {[%clk 00:00:45]} Nc7 {[%clk 00:00:33]} {[%emt 00:00:07]} 25.
Rfe1 {[%clk 00:00:44]} {[%emt 00:00:03]} b5 {[%clk 00:00:26]} {[%emt 00:00:09]}
26. axb5 {[%clk 00:00:43]} {[%emt 00:00:04]} axb5 {[%clk 00:00:27]} 27. Bd3
{[%clk 00:00:43]} {[%emt 00:00:01]} Rc6 {[%clk 00:00:26]} {[%emt 00:00:04]} 28.
Bh6+ {[%clk 00:00:35]} {[%emt 00:00:09]} Kd7 {[%clk 00:00:15]} {[%emt
00:00:13]} 29. Bg7 {[%clk 00:00:36]} Rb8 {[%clk 00:00:13]} {[%emt 00:00:05]} 30.
Bxf6 {[%clk 00:00:36]} {[%emt 00:00:02]} Ne6 {[%clk 00:00:11]} {[%emt
00:00:03]} 31. d5 {[%clk 00:00:33]} {[%emt 00:00:06]} 1-0

[Event "Nové Hrady - Blesk"]
[Site "Nové Hrady, Czech Republic"]
[Date "2023.08.17"]
[Round "4.1"]
[White "Pulpan, Jakub"]
[Black "Zeman, Matyas"]
[Result "1-0"]
[TimeControl "2x3+2s"]
[WhiteFideId "302759"]
[BlackFideId "364398"]
[WhiteElo "2452"]
[BlackElo "2254"]

1. b3 {[%clk 00:02:57]} {[%emt 00:00:07]} Nf6 {[%clk 00:03:02]} {[%emt
00:00:02]} 2. Bb2 {[%clk 00:02:58]} e6 {[%clk 00:03:03]} 3. Nf3 {[%clk
00:02:53]} {[%emt 00:00:07]} d5 {[%clk 00:03:02]} {[%emt 00:00:03]} 4. c4
{[%clk 00:02:55]} Be7 {[%clk 00:02:59]} {[%emt 00:00:06]} 5. g3 {[%clk
00:02:52]} {[%emt 00:00:04]} O-O {[%clk 00:02:59]} {[%emt 00:00:02]} 6. Bg2
{[%clk 00:02:53]} c5 {[%clk 00:02:46]} {[%emt 00:00:16]} 7. cxd5 {[%clk
00:02:54]} exd5 {[%clk 00:02:48]} 8. d4 {[%clk 00:02:55]} cxd4 {[%clk
00:02:48]} {[%emt 00:00:04]} 9. O-O {[%clk 00:02:56]} {[%emt 00:00:02]} Nc6
{[%clk 00:02:47]} {[%emt 00:00:03]} 10. Nxd4 {[%clk 00:02:57]} Bg4 {[%clk
00:02:28]} {[%emt 00:00:21]} 11. Nc3 {[%clk 00:02:46]} {[%emt 00:00:13]} Rc8
{[%clk 00:02:24]} {[%emt 00:00:06]} 12. h3 {[%emt 00:00:07]} Bh5 {[%clk
00:02:06]} {[%emt 00:00:14]} 13. Nf5 {[%clk 00:02:38]} {[%emt 00:00:11]} d4
{[%clk 00:01:54]} {[%emt 00:00:13]} 14. Nb5 {[%clk 00:02:35]} {[%emt 00:00:05]}
Bc5 {[%clk 00:01:46]} {[%emt 00:00:10]} 15. Nbxd4 {[%clk 00:02:33]} {[%emt
00:00:04]} Nxd4 {[%clk 00:01:31]} {[%emt 00:00:17]} 16. Bxd4 {[%clk 00:02:08]}
{[%emt 00:00:27]} Bxd4 {[%clk 00:01:29]} {[%emt 00:00:05]} 17. Nxd4 {[%clk
00:01:43]} {[%emt 00:00:27]} Qb6 {[%clk 00:01:30]} 18. g4 {[%clk 00:01:31]}
{[%emt 00:00:14]} Bg6 {[%clk 00:01:31]} {[%emt 00:00:01]} 19. e3 {[%clk
00:01:28]} {[%emt 00:00:05]} h5 {[%clk 00:01:26]} {[%emt 00:00:07]} 20. Qf3
{[%clk 00:01:26]} {[%emt 00:00:04]} hxg4 {[%clk 00:01:22]} {[%emt 00:00:06]} 21.
hxg4 {[%clk 00:01:27]} Ne4 {[%clk 00:01:00]} {[%emt 00:00:25]} 22. Rfc1 {[%clk
00:01:26]} {[%emt 00:00:03]} Qb4 {[%clk 00:00:46]} {[%emt 00:00:16]} 23. Qf4
{[%clk 00:00:31]} {[%emt 00:00:57]} Rxc1+ {[%emt 00:00:09]} 24. Rxc1 {[%emt
00:00:01]} Qd2 {[%clk 00:00:40]} 25. Rf1 {[%clk 00:00:33]} {[%emt 00:00:02]}
Re8 {[%clk 00:00:14]} {[%emt 00:00:29]} 26. Qc7 {[%clk 00:00:25]} {[%emt
00:00:09]} Ng5 {[%clk 00:00:04]} {[%emt 00:00:12]} 27. Qxb7 {[%clk 00:00:21]}
{[%emt 00:00:05]} a5 {[%clk 00:00:04]} {[%emt 00:00:02]} 28. Qb5 {[%clk
00:00:22]} Rd8 {[%clk 00:00:05]} 29. Qxg5 {[%emt 00:00:04]} 1-0

[Event "Nové Hrady - Blesk"]
[Site "Nové Hrady, Czech Republic"]
[Date "2023.08.17"]
[Round "4.2"]
[White "Rausch, Rudolf"]
[Black "Hak, David"]
[Result "0-1"]
[TimeControl "2x3+2s"]
[WhiteFideId "1639455"]
[BlackFideId "377007"]
[WhiteElo "1806"]
[BlackElo "2037"]

1. d4 {[%clk 00:03:03]} Nf6 {[%clk 00:03:03]} 2. c4 {[%clk 00:03:04]} g6 {[%clk
00:03:04]} 3. Nc3 {[%clk 00:03:05]} Bg7 {[%clk 00:03:05]} 4. Nf3 {[%clk
00:03:05]} {[%emt 00:00:06]} O-O {[%clk 00:03:06]} {[%emt 00:00:02]} 5. Bf4
{[%clk 00:03:03]} {[%emt 00:00:04]} d6 {[%clk 00:03:05]} {[%emt 00:00:03]} 6.
e3 {[%clk 00:03:04]} b6 {[%clk 00:03:01]} {[%emt 00:00:06]} 7. Be2 {[%clk
00:03:04]} {[%emt 00:00:02]} Bb7 {[%clk 00:03:02]} 8. O-O {[%clk 00:03:05]}
{[%emt 00:00:02]} Nbd7 {[%clk 00:03:04]} 9. h3 {[%clk 00:03:05]} {[%emt
00:00:02]} Ne4 {[%clk 00:02:27]} {[%emt 00:00:39]} 10. Nxe4 {[%clk 00:03:03]}
{[%emt 00:00:03]} Bxe4 {[%clk 00:02:28]} 11. Nd2 {[%clk 00:03:01]} {[%emt
00:00:05]} Bb7 {[%clk 00:02:24]} {[%emt 00:00:07]} 12. Bf3 {[%clk 00:03:00]}
{[%emt 00:00:02]} Qc8 {[%clk 00:02:07]} {[%emt 00:00:19]} 13. Bxb7 {[%clk
00:02:58]} {[%emt 00:00:03]} Qxb7 {[%clk 00:02:08]} 14. Qf3 {[%clk 00:02:58]}
{[%emt 00:00:03]} Qxf3 {[%clk 00:01:58]} {[%emt 00:00:13]} 15. Nxf3 {[%clk
00:02:59]} c5 {[%clk 00:01:59]} 16. Rad1 {[%clk 00:02:48]} {[%emt 00:00:16]}
Rfc8 {[%clk 00:01:58]} {[%emt 00:00:02]} 17. b3 {[%clk 00:02:46]} {[%emt
00:00:04]} a6 {[%clk 00:01:46]} {[%emt 00:00:14]} 18. a3 {[%clk 00:02:23]}
{[%emt 00:00:25]} b5 {[%clk 00:01:44]} {[%emt 00:00:04]} 19. cxb5 {[%clk
00:02:14]} {[%emt 00:00:11]} axb5 {[%clk 00:01:44]} {[%emt 00:00:03]} 20. a4
{[%clk 00:02:14]} {[%emt 00:00:02]} bxa4 {[%clk 00:01:39]} {[%emt 00:00:06]} 21.
bxa4 {[%clk 00:02:15]} Rxa4 {[%clk 00:01:34]} {[%emt 00:00:08]} 22. dxc5 {[%clk
00:02:12]} {[%emt 00:00:05]} Nxc5 {[%clk 00:01:32]} {[%emt 00:00:04]} 23. Rc1
{[%clk 00:02:03]} {[%emt 00:00:10]} Rb8 {[%clk 00:01:07]} {[%emt 00:00:28]} 24.
Rxc5 {[%clk 00:02:01]} {[%emt 00:00:04]} Rxf4 {[%clk 00:01:08]} 25. Rc7 {[%clk
00:01:51]} {[%emt 00:00:12]} Re4 {[%clk 00:01:02]} {[%emt 00:00:08]} 26. Rfc1
{[%clk 00:01:42]} {[%emt 00:00:11]} Bf6 {[%clk 00:00:50]} {[%emt 00:00:15]} 27.
Rc8+ {[%clk 00:01:38]} {[%emt 00:00:06]} Rxc8 {[%clk 00:00:51]} 28. Rxc8+ Kg7
{[%emt 00:00:02]} 29. Rc7 {[%clk 00:01:35]} {[%emt 00:00:07]} Ra4 {[%clk
00:00:52]} {[%emt 00:00:01]} 30. g3 {[%clk 00:01:33]} {[%emt 00:00:03]} Ra2
{[%clk 00:00:46]} {[%emt 00:00:09]} 31. h4 {[%clk 00:01:29]} {[%emt 00:00:06]}
h6 {[%clk 00:00:45]} {[%emt 00:00:04]} 32. Rb7 {[%clk 00:01:24]} {[%emt
00:00:06]} e6 {[%clk 00:00:44]} {[%emt 00:00:04]} 33. Rd7 {[%clk 00:01:22]}
{[%emt 00:00:04]} d5 {[%clk 00:00:44]} {[%emt 00:00:02]} 34. Kg2 {[%clk
00:01:16]} {[%emt 00:00:07]} Bc3 {[%clk 00:00:35]} {[%emt 00:00:11]} 35. g4
{[%clk 00:01:08]} {[%emt 00:00:10]} Bf6 {[%clk 00:00:20]} {[%emt 00:00:17]} 36.
g5 {[%clk 00:01:03]} {[%emt 00:00:07]} hxg5 {[%clk 00:00:21]} 37. hxg5 {[%clk
00:01:03]} {[%emt 00:00:02]} Bb2 {[%clk 00:00:21]} {[%emt 00:00:03]} 38. Kg3
{[%clk 00:00:58]} {[%emt 00:00:07]} Bc3 {[%clk 00:00:17]} {[%emt 00:00:07]} 39.
Kg2 {[%emt 00:00:12]} Bd2 {[%clk 00:00:13]} {[%emt 00:00:03]} 40. Kg3 {[%clk
00:00:51]} Bb4 {[%clk 00:00:14]} 41. Kg2 {[%clk 00:00:52]} {[%emt 00:00:03]}
Rc2 {[%clk 00:00:14]} {[%emt 00:00:02]} 42. Rb7 {[%clk 00:00:52]} {[%emt
00:00:02]} Bc3 {[%clk 00:00:13]} {[%emt 00:00:04]} 43. Kg3 {[%clk 00:00:52]}
Rc1 {[%clk 00:00:14]} 44. Kg2 {[%clk 00:00:51]} {[%emt 00:00:04]} e5 {[%clk
00:00:11]} {[%emt 00:00:04]} 45. Rd7 {[%clk 00:00:52]} {[%emt 00:00:02]} Rd1
{[%clk 00:00:11]} {[%emt 00:00:03]} 46. Rd6 {[%emt 00:00:06]} e4 47. Nh2 {[%clk
00:00:34]} {[%emt 00:00:15]} Rd2 {[%clk 00:00:14]} 48. Ng4 {[%clk 00:00:30]}
{[%emt 00:00:06]} d4 {[%clk 00:00:15]} 49. exd4 {[%clk 00:00:29]} {[%emt
00:00:04]} Bxd4 {[%clk 00:00:15]} {[%emt 00:00:03]} 50. Kg3 {[%clk 00:00:28]}
{[%emt 00:00:02]} Bxf2+ {[%clk 00:00:16]} 51. Nxf2 {[%emt 00:00:03]} Rxd6
{[%emt 00:00:01]} 52. Nxe4 {[%clk 00:00:29]} Rd4 {[%clk 00:00:18]} {[%emt
00:00:02]} 53. Kf3 {[%clk 00:00:29]} Ra4 {[%clk 00:00:19]} 54. Ke3 {[%clk
00:00:30]} {[%emt 00:00:03]} Ra1 {[%clk 00:00:20]} 55. Kf3 {[%clk 00:00:31]}
Kf8 {[%clk 00:00:20]} {[%emt 00:00:03]} 56. Ke3 {[%clk 00:00:31]} {[%emt
00:00:02]} Ke7 {[%clk 00:00:21]} {[%emt 00:00:02]} 57. Kf4 {[%clk 00:00:31]}
Ra4 {[%clk 00:00:21]} {[%emt 00:00:03]} 58. Ke5 {[%clk 00:00:32]} {[%emt
00:00:02]} Ra5+ {[%clk 00:00:21]} {[%emt 00:00:01]} 59. Kf4 {[%clk 00:00:32]}
{[%emt 00:00:02]} Ke6 {[%clk 00:00:20]} {[%emt 00:00:04]} 60. Ng3 {[%clk
00:00:27]} {[%emt 00:00:07]} Ra4+ {[%clk 00:00:19]} {[%emt 00:00:03]} 61. Kf3
{[%clk 00:00:27]} Ke5 {[%clk 00:00:18]} {[%emt 00:00:03]} 62. Ne2 {[%clk
00:00:23]} {[%emt 00:00:07]} Ra3+ {[%clk 00:00:19]} {[%emt 00:00:02]} 63. Kg4
{[%clk 00:00:21]} {[%emt 00:00:03]} Ra2 {[%clk 00:00:19]} 64. Kf3 {[%clk
00:00:20]} {[%emt 00:00:03]} Rxe2 {[%clk 00:00:20]} 65. Kxe2 {[%clk 00:00:21]}
{[%emt 00:00:03]} Kf4 {[%clk 00:00:21]} 66. Kf2 {[%clk 00:00:22]} {[%emt
00:00:01]} Kxg5 67. Kf3 f5 {[%clk 00:00:23]} 68. Kg3 {[%clk 00:00:26]} f4+ 69.
Kf3 {[%emt 00:00:02]} Kf5 {[%clk 00:00:24]} 70. Kf2 {[%clk 00:00:28]} Ke4
{[%clk 00:00:27]} 71. Kg2 {[%clk 00:00:29]} f3+ {[%clk 00:00:28]} 72. Kf2
{[%clk 00:00:31]} Kf4 {[%clk 00:00:29]} {[%emt 00:00:03]} 73. Kf1 {[%clk
00:00:32]} Ke3 {[%clk 00:00:29]} {[%emt 00:00:02]} 74. Ke1 {[%clk 00:00:33]} g5
{[%clk 00:00:30]} {[%emt 00:00:02]} 75. Kf1 {[%clk 00:00:35]} f2 {[%clk
00:00:31]} {[%emt 00:00:02]} 76. Kg2 {[%clk 00:00:36]} Ke2 {[%clk 00:00:32]} 77.
Kg3 {[%clk 00:00:37]} f1=Q {[%emt 00:00:04]} 0-1

[Event "Nové Hrady - Blesk"]
[Site "Nové Hrady, Czech Republic"]
[Date "2023.08.17"]
[Round "4.3"]
[White "Papacek, Stepan"]
[Black "Babula, Milan"]
[Result "0-1"]
[TimeControl "2x3+2s"]
[WhiteFideId "301035"]
[BlackFideId "300632"]
[WhiteElo "2137"]
[BlackElo "2176"]

1. e4 {[%clk 00:03:01]} {[%emt 00:00:03]} Nc6 {[%clk 00:03:03]} {[%emt
00:00:02]} 2. Nf3 {[%clk 00:03:01]} g6 {[%clk 00:03:03]} {[%emt 00:00:03]} 3.
d4 {[%clk 00:02:57]} {[%emt 00:00:05]} Bg7 {[%clk 00:03:05]} 4. d5 {[%clk
00:02:47]} {[%emt 00:00:12]} Nb8 {[%clk 00:03:06]} {[%emt 00:00:01]} 5. Bd3
{[%clk 00:02:26]} {[%emt 00:00:23]} c6 {[%clk 00:03:05]} {[%emt 00:00:03]} 6.
O-O {[%clk 00:02:20]} {[%emt 00:00:08]} Nf6 {[%clk 00:02:58]} {[%emt 00:00:09]}
7. c4 {[%clk 00:02:18]} {[%emt 00:00:04]} d6 {[%clk 00:02:57]} {[%emt
00:00:04]} 8. Nc3 {[%clk 00:02:17]} {[%emt 00:00:02]} O-O {[%clk 00:02:57]}
{[%emt 00:00:02]} 9. Re1 {[%clk 00:02:16]} {[%emt 00:00:03]} Bg4 {[%clk
00:02:49]} {[%emt 00:00:10]} 10. Qb3 {[%clk 00:01:55]} {[%emt 00:00:23]} Qc8
{[%clk 00:02:39]} {[%emt 00:00:12]} 11. e5 {[%clk 00:01:53]} {[%emt 00:00:03]}
Nfd7 {[%clk 00:02:27]} {[%emt 00:00:14]} 12. exd6 {[%clk 00:01:42]} {[%emt
00:00:13]} exd6 {[%clk 00:02:27]} {[%emt 00:00:03]} 13. Ng5 {[%clk 00:01:22]}
{[%emt 00:00:22]} Nc5 {[%clk 00:02:08]} {[%emt 00:00:21]} 14. Qc2 {[%clk
00:01:22]} {[%emt 00:00:02]} Nbd7 {[%clk 00:01:50]} {[%emt 00:00:20]} 15. Bf4
{[%clk 00:01:22]} {[%emt 00:00:02]} Ne5 {[%clk 00:01:42]} {[%emt 00:00:10]} 16.
Bxe5 {[%clk 00:01:22]} {[%emt 00:00:02]} Bxe5 {[%clk 00:01:42]} {[%emt
00:00:02]} 17. h3 {[%clk 00:01:21]} {[%emt 00:00:03]} Nxd3 {[%clk 00:01:34]}
{[%emt 00:00:10]} 18. Qxd3 {[%clk 00:01:20]} {[%emt 00:00:03]} Bf5 {[%clk
00:01:35]} 19. Qf3 {[%clk 00:01:10]} {[%emt 00:00:13]} Qd7 {[%clk 00:01:24]}
{[%emt 00:00:13]} 20. g4 {[%clk 00:01:09]} {[%emt 00:00:02]} h6 {[%clk
00:01:18]} {[%emt 00:00:09]} 21. Nge4 {[%clk 00:00:55]} {[%emt 00:00:16]} Bxe4
{[%clk 00:01:16]} {[%emt 00:00:03]} 22. Qxe4 {[%clk 00:00:41]} {[%emt
00:00:16]} f5 {[%clk 00:01:18]} 23. Qe3 {[%clk 00:00:42]} Kh7 {[%clk 00:01:08]}
{[%emt 00:00:14]} 24. g5 {[%clk 00:00:40]} {[%emt 00:00:04]} f4 {[%clk
00:01:07]} {[%emt 00:00:03]} 25. Qd3 {[%clk 00:00:40]} {[%emt 00:00:02]} hxg5
{[%clk 00:00:55]} {[%emt 00:00:14]} 26. Ne4 {[%clk 00:00:38]} {[%emt 00:00:05]}
Qf5 {[%clk 00:00:55]} {[%emt 00:00:01]} 27. Rad1 {[%clk 00:00:35]} {[%emt
00:00:05]} c5 {[%clk 00:00:55]} {[%emt 00:00:03]} 28. Qf3 {[%clk 00:00:32]}
{[%emt 00:00:04]} Rh8 {[%clk 00:00:34]} {[%emt 00:00:23]} 29. Kg2 {[%clk
00:00:26]} {[%emt 00:00:14]} Kg7 {[%clk 00:00:35]} 30. b4 {[%clk 00:00:21]}
{[%emt 00:00:03]} Rh4 {[%clk 00:00:29]} {[%emt 00:00:07]} 31. bxc5 {[%clk
00:00:14]} {[%emt 00:00:09]} g4 {[%clk 00:00:24]} {[%emt 00:00:07]} 32. hxg4
{[%clk 00:00:13]} {[%emt 00:00:03]} Rxg4+ 33. Kf1 {[%emt 00:00:02]} dxc5 {[%clk
00:00:20]} {[%emt 00:00:06]} 34. d6 {[%clk 00:00:12]} {[%emt 00:00:05]} Bd4
{[%clk 00:00:13]} {[%emt 00:00:09]} 35. Rb1 {[%clk 00:00:06]} {[%emt 00:00:08]}
b6 {[%clk 00:00:14]} 36. a4 {[%clk 00:00:07]} {[%emt 00:00:03]} Rh8 {[%clk
00:00:08]} {[%emt 00:00:07]} 37. a5 {[%clk 00:00:07]} {[%emt 00:00:02]} Rh1+
{[%clk 00:00:07]} {[%emt 00:00:02]} 38. Ke2 {[%clk 00:00:09]} Rxe1+ {[%clk
00:00:07]} {[%emt 00:00:03]} 39. Rxe1 {[%clk 00:00:09]} {[%emt 00:00:02]} bxa5
{[%clk 00:00:07]} {[%emt 00:00:02]} 40. Rb1 {[%clk 00:00:09]} {[%emt 00:00:02]}
Rh4 {[%clk 00:00:04]} {[%emt 00:00:05]} 41. Rb7+ {[%clk 00:00:10]} {[%emt
00:00:02]} Kf8 {[%clk 00:00:03]} {[%emt 00:00:03]} 42. d7 Ke7 {[%emt 00:00:02]}
43. Rb8 {[%clk 00:00:00]} {[%emt 00:00:10]} Kxd7 44. Nxc5+ {[%emt 00:00:04]}
Qxc5 {[%clk 00:00:04]} 45. Qb7+ {[%clk 00:00:00]} {[%emt 00:00:01]} Qc7 {[%clk
00:00:04]} {[%emt 00:00:02]} 46. Qb5+ {[%clk 00:00:00]} Ke7 {[%clk 00:00:04]}
{[%emt 00:00:02]} 47. Re8+ {[%clk 00:00:00]} {[%emt 00:00:03]} Kf6 {[%clk
00:00:04]} {[%emt 00:00:01]} 48. Rf8+ {[%clk 00:00:00]} {[%emt 00:00:01]} Kg7
{[%clk 00:00:04]} {[%emt 00:00:02]} 49. Re8 {[%clk 00:00:00]} {[%emt 00:00:02]}
f3+ {[%clk 00:00:04]} {[%emt 00:00:02]} 50. Kd3 {[%clk 00:00:00]} Bf6 {[%clk
00:00:04]} {[%emt 00:00:04]} 51. Qd5 {[%clk 00:00:00]} {[%emt 00:00:02]} Rd4+
{[%clk 00:00:04]} {[%emt 00:00:01]} 0-1

[Event "Nové Hrady - Blesk"]
[Site "Nové Hrady, Czech Republic"]
[Date "2023.08.17"]
[Round "4.4"]
[White "Durchan, Milan"]
[Black "Vybiral, Zdenek"]
[Result "0-1"]
[TimeControl "2x3+2s"]
[WhiteFideId "333212"]
[BlackFideId "305200"]
[WhiteElo "1677"]
[BlackElo "2158"]

1. f4 {[%clk 00:03:02]} d5 {[%clk 00:03:02]} {[%emt 00:00:03]} 2. Nf3 {[%clk
00:03:03]} Nf6 {[%clk 00:02:41]} {[%emt 00:00:24]} 3. g3 {[%clk 00:03:04]} Nbd7
{[%clk 00:01:54]} {[%emt 00:00:50]} 4. Bg2 {[%emt 00:00:02]} c6 {[%emt
00:00:01]} 5. c3 {[%clk 00:03:05]} Qc7 {[%clk 00:01:57]} 6. Qc2 {[%clk
00:03:05]} {[%emt 00:00:02]} e5 {[%clk 00:01:58]} 7. d3 {[%clk 00:03:05]}
{[%emt 00:00:02]} e4 {[%clk 00:01:55]} {[%emt 00:00:06]} 8. dxe4 {[%clk
00:02:58]} {[%emt 00:00:09]} Nxe4 {[%clk 00:01:55]} {[%emt 00:00:01]} 9. Nbd2
{[%clk 00:02:47]} {[%emt 00:00:13]} Ndf6 {[%clk 00:01:56]} {[%emt 00:00:02]} 10.
Nxe4 {[%clk 00:02:41]} {[%emt 00:00:08]} Nxe4 {[%clk 00:01:56]} {[%emt
00:00:02]} 11. Be3 {[%clk 00:02:28]} {[%emt 00:00:15]} Bd6 {[%clk 00:01:56]}
{[%emt 00:00:02]} 12. O-O {[%clk 00:01:40]} {[%emt 00:00:49]} O-O {[%clk
00:01:57]} 13. Rad1 {[%clk 00:01:08]} {[%emt 00:00:36]} Re8 {[%clk 00:01:57]}
14. Qb3 {[%clk 00:00:29]} {[%emt 00:00:43]} Nxg3 {[%clk 00:01:40]} {[%emt
00:00:19]} 15. hxg3 {[%clk 00:00:00]} {[%emt 00:00:29]} 0-1

[Event "Nové Hrady - Blesk"]
[Site "Nové Hrady, Czech Republic"]
[Date "2023.08.17"]
[Round "4.5"]
[White "Šimůnek, Jakub Šimon"]
[Black "Richtrova, Eliska"]
[Result "1-0"]
[TimeControl "2x3+2s"]
[WhiteFideId "23709464"]
[BlackFideId "300683"]
[WhiteElo "1921"]
[BlackElo "2122"]

1. e4 {[%clk 00:03:03]} {[%emt 00:00:02]} e5 {[%clk 00:03:02]} {[%emt
00:00:02]} 2. Nf3 {[%clk 00:03:04]} Nc6 {[%clk 00:03:04]} 3. Nc3 {[%clk
00:03:05]} Nf6 {[%clk 00:03:04]} {[%emt 00:00:04]} 4. d4 {[%clk 00:03:06]} exd4
{[%clk 00:02:58]} {[%emt 00:00:09]} 5. Nxd4 {[%clk 00:03:07]} Bb4 {[%clk
00:02:56]} {[%emt 00:00:05]} 6. Nxc6 {[%clk 00:03:07]} bxc6 {[%clk 00:02:57]}
{[%emt 00:00:02]} 7. Bd3 {[%clk 00:03:08]} O-O {[%clk 00:02:51]} {[%emt
00:00:09]} 8. O-O {[%clk 00:03:08]} {[%emt 00:00:02]} d5 {[%clk 00:02:52]} 9.
exd5 {[%clk 00:03:09]} cxd5 {[%clk 00:02:53]} 10. h3 {[%clk 00:03:05]} {[%emt
00:00:09]} h6 {[%clk 00:02:42]} {[%emt 00:00:13]} 11. Bf4 {[%clk 00:03:05]}
{[%emt 00:00:02]} c6 {[%clk 00:02:39]} {[%emt 00:00:05]} 12. Qf3 {[%clk
00:03:04]} {[%emt 00:00:03]} Bd6 {[%clk 00:02:32]} {[%emt 00:00:10]} 13. Rae1
{[%clk 00:02:56]} {[%emt 00:00:09]} Rb8 {[%clk 00:02:27]} {[%emt 00:00:07]} 14.
Rb1 {[%clk 00:01:48]} {[%emt 00:01:10]} Qc7 {[%clk 00:02:07]} {[%emt 00:00:22]}
15. Bxd6 {[%clk 00:01:45]} {[%emt 00:00:05]} Qxd6 {[%clk 00:02:08]} 16. Ne2
{[%clk 00:01:46]} Rb4 {[%clk 00:02:03]} {[%emt 00:00:09]} 17. c3 {[%clk
00:01:42]} {[%emt 00:00:06]} Ra4 {[%clk 00:02:02]} {[%emt 00:00:03]} 18. a3
{[%clk 00:01:28]} {[%emt 00:00:15]} Ne4 {[%clk 00:01:50]} {[%emt 00:00:15]} 19.
Rfd1 {[%clk 00:01:06]} {[%emt 00:00:24]} Ba6 {[%clk 00:01:19]} {[%emt
00:00:33]} 20. Bxa6 {[%clk 00:00:53]} {[%emt 00:00:15]} Rxa6 {[%clk 00:01:20]}
21. Qxe4 {[%clk 00:00:48]} {[%emt 00:00:08]} Rb6 {[%clk 00:01:08]} {[%emt
00:00:14]} 22. Qd3 {[%clk 00:00:39]} {[%emt 00:00:10]} Rbb8 {[%clk 00:01:05]}
{[%emt 00:00:06]} 23. c4 {[%clk 00:00:37]} {[%emt 00:00:04]} Rbd8 {[%clk
00:01:03]} {[%emt 00:00:04]} 24. cxd5 cxd5 25. Nc3 {[%clk 00:00:39]} {[%emt
00:00:02]} d4 {[%clk 00:00:56]} {[%emt 00:00:10]} 26. Ne2 {[%clk 00:00:34]}
{[%emt 00:00:07]} Qe5 {[%clk 00:00:57]} 27. Nxd4 {[%clk 00:00:27]} {[%emt
00:00:10]} Rd5 {[%clk 00:00:58]} 28. Nf3 {[%clk 00:00:26]} {[%emt 00:00:05]}
Rxd3 {[%emt 00:00:05]} 29. Nxe5 Rxd1+ 30. Rxd1 {[%emt 00:00:01]} 1-0